[Event "Polish University-ch Women 2024"]
[Site "Lublin"]
[Date "2024.02.24"]
[Round "6.2"]
[White "Antolak, Julia"]
[Black "Wikar, Martyna"]
[Result "1-0"]
[ECO "E20"]
[WhiteElo "2309"]
[BlackElo "2214"]
[Annotator "TA"]
[PlyCount "97"]
[EventDate "2024.02.22"]
[EventType "swiss"]
[EventCountry "POL"]
[SourceTitle "playchess.com"]
[Source "ChessBase"]
[SourceQuality "1"]
[TimeControl "600+3"]

{[%evp 10,97,10,3,55,60,61,63,50,65,68,37,55,37,45,47,43,34,45,49,49,44,29,38,56,4,9,0,60,22,24,24,17,21,244,246,245,239,239,212,204,215,216,216,214,215,360,353,376,376,386,387,418,414,543,367,360,367,367,360,360,352,4129,2359,5073,4137,2680,2389,29965,29966,29967,29968,29970,29969,29975,29976,29977,29978,29978,29979,29997,29980,29979,29977,29976,29977,29977,29976,29992,29971]} 1. d4 {[%emt 0:00:02]} Nf6 {[%emt 0:00:01]} 2. c4 {[%emt 0:00:01]} e6 {[%emt 0:00:03]} 3. Nc3 {[%emt 0:00:01]} Bb4 {[%emt 0:00:03]} 4. f3 {[%emt 0:00:01]} d5 {[%emt 0:00:30]} 5. a3 {[%emt 0:00:01]} Be7 {[%emt 0:00:48]} 6. e4 {[%emt 0:00:07]} c6 {[%emt 0:00:30]} (6... c5 $11) 7. e5 $14 {[%emt 0:00:12]} Nfd7 {[%emt 0:00:08]} 8. f4 {[%emt 0:00:04]} dxc4 {[%emt 0:00:16] White is slightly better.} 9. Bxc4 {[%emt 0:00:05]} Nb6 {[%emt 0:00:01]} 10. Be2 {[%emt 0:00:25]} O-O {[%emt 0:00:17]} 11. Nf3 {[%emt 0:00:02]} c5 {[%emt 0:00:06]} 12. Be3 {[%emt 0:00:30]} cxd4 {[%emt 0:01:02]} 13. Qxd4 {[%emt 0:00:12]} Nc6 {[%emt 0:00:17]} 14. Qxd8 {[%emt 0:00:22]} Rxd8 {[%emt 0:00:02]} 15. O-O {[%emt 0:00:16]} Bd7 {[%emt 0:00:47]} 16. Rfd1 {[%emt 0:01:01]} Na5 {[%emt 0:00:21]} 17. Bxb6 {[%emt 0:00:58]} ({Better is} 17. b4 $1 $14 Nac4 18. Bc5) 17... axb6 $11 {[%emt 0:00:02]} 18. b4 {[%emt 0:00:01]} Nc6 {[%emt 0:01:18]} (18... Nb3 $11 19. Rab1 (19. Ra2 Bc6 $11) 19... Rxa3) 19. Nb5 {[%emt 0:00:13]} Na7 {[%emt 0:00:33]} 20. Nxa7 {[%emt 0:01:12]} Rxa7 {[%emt 0:00:01]} 21. Rac1 {[%emt 0:00:01][%cal Ba1c1,Bc1c7,Bc7d7][%mdl 32] [#] Strongly threatening Rc7.} Rxa3 $2 {[%emt 0:01:30] Black cannot hold the game after this.} (21... Bc6 $11 {and Black has nothing to worry.}) 22. Rc7 $1 $18 {[%emt 0:00:12][%csl LRb7,LRd7]} Bxb4 {[%emt 0:00:04][%cal Oa3a2]} (22... Ba4 $2 23. Rxd8+ Bxd8 24. Rc8 $18) 23. Rcxd7 {[%emt 0:00:25]} (23. Rdxd7 Rxd7 24. Rxd7 Bc5+ 25. Kf1 Ra1+ 26. Bd1 h6) 23... Bc5+ {[%emt 0:00:14]} 24. Kf1 {[%emt 0:00:01]} Rxd7 {[%emt 0:00:21]} 25. Rxd7 {[%emt 0:00:01]} Ra1+ {[%emt 0:00:01]} 26. Rd1 {[%emt 0:00:03]} Rxd1+ {[%emt 0:00:20]} 27. Bxd1 {[%emt 0:00:01]} f6 {[%emt 0:00:01]} (27... Be3 $142 28. g3 b5) 28. Bb3 {[%emt 0:00:19]} Kf7 {[%emt 0:00:25]} 29. Ke2 {[%emt 0:00:01] Prevents Be3} Ke7 {[%emt 0:00:11]} 30. Kd3 {[%emt 0:00:10]} (30. exf6+ gxf6 31. Bc4 h6) 30... h6 {[%emt 0:00:38]} 31. Nd4 {[%emt 0:00:18]} (31. exf6+ Kxf6 32. Ba2 g5 33. fxg5+ hxg5 $18) 31... g5 {[%emt 0:00:04]} 32. exf6+ {[%emt 0:00:53]} ({Not} 32. Bxe6 Bxd4 33. Bd5 fxe5 $11) 32... Kxf6 {[%emt 0:00:04]} 33. fxg5+ {[%emt 0:00:01]} ({Don't take} 33. Nxe6 gxf4 34. Nxc5 (34. Nxf4 Bg1 $18) 34... bxc5 $18) 33... hxg5 {[%emt 0:00:05]} 34. Nxe6 {[%emt 0:00:07]} Bg1 {[%emt 0:00:11]} 35. h3 {[%emt 0:00:02]} Kf5 $2 {[%emt 0:00:07]} (35... b5 36. Ke4 Bh2) 36. g4+ {[%emt 0:00:26]} Kf6 {[%emt 0:00:05]} 37. Ke4 {[%emt 0:00:04] [#] Intending Nd4 and mate.} b5 {[%emt 0:00:06]} 38. Nc7 {[%emt 0:00:05]} b6 {[%emt 0:00:11]} 39. Nxb5 {[%emt 0:00:13] White mates.} Bf2 {[%emt 0:00:16]} 40. Nc7 {[%emt 0:00:08]} Bg1 {[%emt 0:00:00]} 41. Nd5+ {[%emt 0:00:01]} Kg6 {[%emt 0:00:00]} 42. Ke5 {[%emt 0:00:05]} Bh2+ {[%emt 0:00:00]} 43. Ke6 {[%emt 0:00:01]} Bg1 {[%emt 0:00:00]} 44. Bc2+ {[%emt 0:00:01]} Kh6 {[%emt 0:00:02]} 45. Kf5 {[%emt 0:00:25]} Bd4 {[%emt 0:00:04]} 46. Nf6 {[%emt 0:00:34]} Be3 {[%emt 0:00:04]} 47. Ne4 {[%emt 0:00:05]} b5 {[%emt 0:00:03][%cal Bb6b5,Bb5b4][%mdl 32]} 48. Nd6 {[%emt 0:00:08]} b4 {[%emt 0:00:02]} 49. Nf7+ {[%emt 0:00:01] Weighted Error Value: White=0.12 (very precise) /Black=0.54.  Loses game:     	---       	Black=1      Mistake:       	White=1     	Black=3      Inaccurate:     	White=3     	Black=2      OK:         	White=12    	Black=10     Best:        	White=2     	---} 1-0

[Event "Polish University-ch Women 2024"]
[Site "Lublin"]
[Date "2024.02.24"]
[Round "6.3"]
[White "Kroliczek, Gabriela"]
[Black "Cieslak, Wiktoria"]
[Result "0-1"]
[ECO "B23"]
[WhiteElo "1928"]
[BlackElo "1868"]
[Annotator "RC"]
[PlyCount "94"]
[EventDate "2024.02.22"]
[EventType "swiss"]
[EventCountry "POL"]
[SourceTitle "playchess.com"]
[Source "ChessBase"]
[SourceQuality "1"]
[TimeControl "600+3"]

1. e4 {[%emt 0:00:02]} c5 {[%emt 0:00:01]} 2. Nc3 {[%emt 0:00:03]} Nc6 {[%emt 0:00:04]} 3. Bb5 {[%emt 0:00:02]} a6 {[%emt 0:00:03]} 4. Bxc6 {[%emt 0:00:03]} dxc6 {[%emt 0:00:02]} 5. d3 {[%emt 0:00:06]} g6 {[%emt 0:00:02]} 6. Be3 {[%emt 0:00:20]} b6 {[%emt 0:00:15]} 7. Qd2 {[%emt 0:00:06]} Bg7 {[%emt 0:00:02]} 8. h3 {[%emt 0:00:04]} Qc7 {[%emt 0:00:19]} 9. Nf3 {[%emt 0:00:03]} Be6 {[%emt 0:00:19]} 10. O-O {[%emt 0:00:20]} Rd8 {[%emt 0:00:09]} 11. a4 {[%emt 0:01:17]} c4 {[%emt 0:00:46]} 12. d4 {[%emt 0:00:22]} Nf6 {[%emt 0:00:38]} 13. Bh6 {[%emt 0:01:57]} O-O {[%emt 0:00:15]} 14. Rfe1 {[%emt 0:00:52]} b5 {[%emt 0:00:28]} 15. axb5 {[%emt 0:00:03]} axb5 {[%emt 0:00:02]} 16. Qg5 {[%emt 0:01:08]} Rfe8 {[%emt 0:01:31]} 17. Bxg7 {[%emt 0:00:37]} Kxg7 {[%emt 0:00:02]} 18. Qe3 {[%emt 0:00:41]} Ra8 {[%emt 0:00:35]} 19. Red1 {[%emt 0:00:57]} Red8 {[%emt 0:00:12]} 20. Ng5 {[%emt 0:00:09]} Bd7 {[%emt 0:00:27]} 21. d5 {[%emt 0:00:27]} h6 {[%emt 0:00:16]} 22. Nf3 {[%emt 0:00:02]} Rxa1 {[%emt 0:00:25]} 23. Rxa1 {[%emt 0:00:01]} b4 {[%emt 0:00:01]} 24. Ne2 {[%emt 0:01:04]} cxd5 {[%emt 0:00:09]} 25. exd5 {[%emt 0:00:08]} Nxd5 {[%emt 0:00:08]} 26. Qd4+ {[%emt 0:00:05]} Nf6 {[%emt 0:00:01]} 27. Ra7 {[%emt 0:00:05]} Qc8 {[%emt 0:00:01]} 28. Qb6 {[%emt 0:00:08]} Bf5 {[%emt 0:00:21]} 29. Ned4 {[%emt 0:00:03]} Nd5 {[%emt 0:00:17]} 30. Qb5 {[%emt 0:00:10]} Be4 {[%emt 0:01:12]} 31. Rb7 {[%emt 0:00:06]} Bxf3 {[%emt 0:00:11]} 32. Nxf3 {[%emt 0:00:01]} c3 {[%emt 0:00:22]} 33. b3 {[%emt 0:00:03]} Qf5 {[%emt 0:00:08]} 34. Qe2 {[%emt 0:00:01]} e6 {[%emt 0:00:21]} 35. Nd4 {[%emt 0:00:01]} Qf6 {[%emt 0:00:16]} 36. Nc6 {[%emt 0:00:01]} Rd6 {[%emt 0:00:16]} 37. Nxb4 {[%emt 0:00:01]} Nf4 {[%emt 0:00:13]} 38. Qf3 {[%emt 0:00:01]} Qe5 {[%emt 0:00:10]} 39. Nd3 {[%emt 0:00:09]} Rxd3 {[%emt 0:00:05]} 40. cxd3 {[%emt 0:00:01]} c2 {[%emt 0:00:01]} 41. Qc6 {[%emt 0:00:05]} Qe1+ {[%emt 0:00:04]} 42. Kh2 {[%emt 0:00:01]} c1=Q {[%emt 0:00:03]} 43. Rxf7+ {[%emt 0:00:07]} Kxf7 {[%emt 0:00:03]} 44. Qd7+ {[%emt 0:00:02]} Kf6 {[%emt 0:00:03]} 45. Qd8+ {[%emt 0:00:03]} Ke5 {[%emt 0:00:03]} 46. Qb8+ {[%emt 0:00:07]} Kd4 {[%emt 0:00:07]} 47. Qxf4+ {[%emt 0:00:05]} Qxf4+ {[%emt 0:00:02]} 0-1

[Event "Polish University-ch Women 2024"]
[Site "Lublin"]
[Date "2024.02.24"]
[Round "6.4"]
[White "Czarniecka, Aleksandra"]
[Black "Kubicka, Anna"]
[Result "0-1"]
[ECO "B18"]
[WhiteElo "1961"]
[BlackElo "2278"]
[Annotator "TA"]
[PlyCount "60"]
[EventDate "2024.02.22"]
[EventType "swiss"]
[EventCountry "POL"]
[SourceTitle "playchess.com"]
[Source "ChessBase"]
[SourceQuality "1"]
[TimeControl "600+3"]

{[%evp 16,60,0,0,0,0,0,0,0,0,0,-11,-6,-11,0,0,12,6,11,-5,14,10,10,21,28,-52,-51,-58,-55,-55,-47,-92,-92,-95,-89,-92,-96,-135,-127,-192,-181,-205,-196,-234,-227,-458,-461]} 1. e4 {[%emt 0:00:01]} c6 {[%emt 0:00:03]} 2. d4 {[%emt 0:00:02]} d5 {[%emt 0:00:02]} 3. Nc3 {[%emt 0:00:01]} dxe4 {[%emt 0:00:01]} 4. Nxe4 {[%emt 0:00:01]} Bf5 {[%emt 0:00:02]} 5. Ng3 {[%emt 0:00:01]} Bg6 {[%emt 0:00:02]} 6. Nh3 {[%emt 0:00:01]} Nf6 {[%emt 0:00:05]} 7. Bc4 {[%emt 0:00:21]} e6 {[%emt 0:00:31]} 8. Nf4 {[%emt 0:00:08]} Bd6 {[%emt 0:00:13]} 9. O-O {[%emt 0:00:38]} Qc7 {[%emt 0:00:21]} 10. Qf3 {[%emt 0:00:38]} O-O {[%emt 0:01:25]} 11. c3 {[%emt 0:00:20]} Nbd7 {[%emt 0:00:16] The position is equal.} 12. Nxg6 {[%emt 0:01:54]} hxg6 {[%emt 0:00:02]} 13. Bg5 {[%emt 0:00:02]} c5 {[%emt 0:00:46]} 14. Rac1 {[%emt 0:01:07]} cxd4 {[%emt 0:01:39]} 15. cxd4 {[%emt 0:00:02]} Qb6 {[%emt 0:00:02][%csl LRb2,LRd4]} 16. Rfd1 {[%emt 0:01:21]} Rac8 {[%emt 0:00:22][%cal Oc8c4]} 17. b3 {[%emt 0:00:07]} Rc7 {[%emt 0:01:14]} 18. Ne4 {[%emt 0:00:08] [#] Nxd6 is the strong threat.} Nxe4 {[%emt 0:00:15]} 19. Qxe4 {[%emt 0:00:01]} Qa5 {[%emt 0:00:19][%csl LRa2,LRg5]} 20. Bf4 {[%emt 0:01:16]} (20. d5 $11 e5 21. a4) 20... Nf6 $15 {[%emt 0:00:09]} 21. Qf3 {[%emt 0:00:03]} Bxf4 {[%emt 0:00:09]} 22. Qxf4 {[%emt 0:00:01]} Rd7 {[%emt 0:00:09]} 23. Qe5 {[%emt 0:00:22]} Qxa2 {[%emt 0:00:29]} 24. Ra1 {[%emt 0:00:02]} Qc2 {[%emt 0:00:10]} 25. Rdc1 {[%emt 0:00:21] [#]} Qb2 {[%emt 0:00:31]} 26. Rd1 {[%emt 0:00:40]} a6 {[%emt 0:00:07]} 27. h3 {[%emt 0:00:14]} (27. Rab1 $17 {might work better.} Qc2 28. Rbc1) 27... Rfd8 $19 {[%emt 0:00:03][%cal Rd7d4]} 28. Rab1 {[%emt 0:00:01]} Qa3 {[%emt 0:00:11]} 29. Rd3 {[%emt 0:00:08]} Qd6 {[%emt 0:00:19] ...b5 would now be deadly.} 30. Qe3 $2 {[%emt 0:00:27]} (30. Re3) 30... b5 {[%emt 0:00:05] Weighted Error Value: White=0.28 (precise) /Black=0.04 (flawless) .  Mistake:       	White=3     	---        Inaccurate:     	White=2     	---        OK:         	White=6     	Black=12     Best:        	White=1     	Black=1} 0-1

[Event "Polish University-ch Women 2024"]
[Site "Lublin"]
[Date "2024.02.24"]
[Round "6.5"]
[White "Kucharska, Honorata"]
[Black "Kaczmarska, Joanna"]
[Result "1-0"]
[ECO "B73"]
[WhiteElo "2137"]
[BlackElo "1870"]
[Annotator "RC"]
[PlyCount "57"]
[EventDate "2024.02.22"]
[EventType "swiss"]
[EventCountry "POL"]
[SourceTitle "playchess.com"]
[Source "ChessBase"]
[SourceQuality "1"]
[TimeControl "600+3"]

1. e4 {[%emt 0:00:03]} c5 {[%emt 0:00:15]} 2. Nf3 {[%emt 0:00:04]} d6 {[%emt 0:00:02]} 3. d4 {[%emt 0:00:06]} cxd4 {[%emt 0:00:02]} 4. Nxd4 {[%emt 0:00:02]} Nf6 {[%emt 0:00:01]} 5. Nc3 {[%emt 0:00:03]} g6 {[%emt 0:00:05]} 6. Be2 {[%emt 0:00:47]} Bg7 {[%emt 0:00:04]} 7. O-O {[%emt 0:00:09]} O-O {[%emt 0:00:10]} 8. Be3 {[%emt 0:00:03]} Nc6 {[%emt 0:00:40]} 9. h3 {[%emt 0:00:27]} Bd7 {[%emt 0:03:32]} 10. Qd2 {[%emt 0:00:38]} Qa5 {[%emt 0:01:00]} 11. Nb3 {[%emt 0:00:18]} Qc7 {[%emt 0:00:47]} 12. Bh6 {[%emt 0:00:09]} Bxh6 {[%emt 0:01:50]} 13. Qxh6 {[%emt 0:00:02]} Ne5 {[%emt 0:00:11]} 14. Rad1 {[%emt 0:01:08]} Nc4 {[%emt 0:00:07]} 15. Bxc4 {[%emt 0:00:17]} Qxc4 {[%emt 0:00:04]} 16. Rd4 {[%emt 0:00:15]} Qc7 {[%emt 0:00:30]} 17. Nd5 {[%emt 0:02:01]} Qxc2 {[%emt 0:01:17]} 18. Nxe7+ {[%emt 0:00:31]} Kh8 {[%emt 0:00:02]} 19. Qf4 {[%emt 0:00:13]} Ne8 {[%emt 0:00:12]} 20. e5 {[%emt 0:01:36]} Qxb2 {[%emt 0:00:02]} 21. exd6 {[%emt 0:00:17]} Qxa2 {[%emt 0:00:02]} 22. Nc5 {[%emt 0:00:29]} Bb5 {[%emt 0:00:02]} 23. Rfd1 {[%emt 0:00:11]} Bc6 {[%emt 0:00:10]} 24. d7 {[%emt 0:00:07]} Ng7 {[%emt 0:00:01]} 25. d8=Q {[%emt 0:00:20]} Raxd8 {[%emt 0:00:05]} 26. Rxd8 {[%emt 0:00:01]} Be8 {[%emt 0:00:02]} 27. Qf6 {[%emt 0:00:16]} Qc2 {[%emt 0:00:02]} 28. Ne6 {[%emt 0:00:18]} Bd7 {[%emt 0:00:03]} 29. Qxg7# {[%emt 0:00:02]} 1-0

[Event "Polish University-ch Women 2024"]
[Site "Lublin"]
[Date "2024.02.24"]
[Round "6.6"]
[White "Jarocka, Liwia"]
[Black "Moscicka, Pola"]
[Result "1-0"]
[ECO "D38"]
[WhiteElo "2199"]
[BlackElo "1960"]
[Annotator "RC"]
[PlyCount "61"]
[EventDate "2024.02.22"]
[EventType "swiss"]
[EventCountry "POL"]
[SourceTitle "playchess.com"]
[Source "ChessBase"]
[SourceQuality "1"]
[TimeControl "600+3"]

1. d4 {[%emt 0:00:01]} Nf6 {[%emt 0:00:02]} 2. c4 {[%emt 0:00:01]} e6 {[%emt 0:00:01]} 3. Nf3 {[%emt 0:00:02]} d5 {[%emt 0:00:08]} 4. Nc3 {[%emt 0:00:01]} Bb4 {[%emt 0:00:03]} 5. Bg5 {[%emt 0:00:05]} h6 {[%emt 0:01:20]} 6. Bxf6 {[%emt 0:00:02]} Qxf6 {[%emt 0:00:07]} 7. e3 {[%emt 0:00:00]} O-O {[%emt 0:00:08]} 8. Rc1 {[%emt 0:00:02]} c6 {[%emt 0:00:20]} 9. Bd3 {[%emt 0:00:21]} b6 {[%emt 0:00:19]} 10. O-O {[%emt 0:00:10]} Bb7 {[%emt 0:00:27]} 11. cxd5 {[%emt 0:00:21]} exd5 {[%emt 0:00:30]} 12. Ne5 {[%emt 0:00:02]} Bd6 {[%emt 0:00:24]} 13. f4 {[%emt 0:00:01]} Qe7 {[%emt 0:00:46]} 14. Qh5 {[%emt 0:00:47]} Nd7 {[%emt 0:00:28]} 15. Rf3 {[%emt 0:00:53]} Nf6 {[%emt 0:00:18]} 16. Qh4 {[%emt 0:00:34]} Rac8 {[%emt 0:00:30]} 17. Ne2 {[%emt 0:01:28]} Ne4 {[%emt 0:00:49]} 18. Qh3 {[%emt 0:00:21]} c5 {[%emt 0:00:14]} 19. Rd1 {[%emt 0:01:15]} Bxe5 {[%emt 0:00:49]} 20. dxe5 {[%emt 0:00:02]} Rfd8 {[%emt 0:00:40]} 21. Ng3 {[%emt 0:00:22]} Nxg3 {[%emt 0:00:20]} 22. Rxg3 {[%emt 0:00:01]} Kh8 {[%emt 0:00:12]} 23. Qf5 {[%emt 0:00:09]} g6 {[%emt 0:00:14]} 24. Qh3 {[%emt 0:00:00]} Kg7 {[%emt 0:01:01]} 25. e6 {[%emt 0:00:25]} Rc6 {[%emt 0:00:45]} 26. f5 {[%emt 0:01:06]} d4 {[%emt 0:00:14]} 27. Rf1 {[%emt 0:00:31]} Kh7 {[%emt 0:00:05]} 28. fxg6+ {[%emt 0:00:01]} fxg6 {[%emt 0:00:04]} 29. Bxg6+ {[%emt 0:00:02]} Kg7 {[%emt 0:00:04]} 30. Be4+ {[%emt 0:00:02]} Kh8 {[%emt 0:00:03]} 31. Qxh6+ {[%emt 0:00:02]} 1-0

[Event "Polish University-ch Women 2024"]
[Site "Lublin"]
[Date "2024.02.24"]
[Round "6.7"]
[White "Trybowska, Barbara"]
[Black "Parol, Pola"]
[Result "0-1"]
[ECO "E06"]
[WhiteElo "1859"]
[BlackElo "2030"]
[Annotator "RC"]
[PlyCount "164"]
[EventDate "2024.02.22"]
[EventType "swiss"]
[EventCountry "POL"]
[SourceTitle "playchess.com"]
[Source "ChessBase"]
[SourceQuality "1"]
[TimeControl "600+3"]

1. d4 {[%emt 0:00:02]} Nf6 {[%emt 0:00:01]} 2. c4 {[%emt 0:00:02]} e6 {[%emt 0:00:01]} 3. g3 {[%emt 0:00:02]} d5 {[%emt 0:00:05]} 4. Bg2 {[%emt 0:00:03]} Be7 {[%emt 0:00:02]} 5. Nf3 {[%emt 0:00:02]} O-O {[%emt 0:00:04]} 6. O-O {[%emt 0:00:03]} c5 {[%emt 0:00:02]} 7. cxd5 {[%emt 0:00:04]} Nxd5 {[%emt 0:00:17]} 8. Nc3 {[%emt 0:00:26]} cxd4 {[%emt 0:00:33]} 9. Nxd5 {[%emt 0:00:17]} Qxd5 {[%emt 0:01:14]} 10. Nxd4 {[%emt 0:00:08]} Qa5 {[%emt 0:00:07]} 11. Nb3 {[%emt 0:00:27]} Qc7 {[%emt 0:00:19]} 12. Bf4 {[%emt 0:01:01]} e5 {[%emt 0:00:05]} 13. Rc1 {[%emt 0:00:03]} Nc6 {[%emt 0:00:10]} 14. Bd2 {[%emt 0:00:57]} Rd8 {[%emt 0:00:20]} 15. Qc2 {[%emt 0:00:05]} Bd7 {[%emt 0:01:30]} 16. Ba5 {[%emt 0:00:14]} b6 {[%emt 0:00:02]} 17. Bxc6 {[%emt 0:00:28]} Bxc6 {[%emt 0:00:18]} 18. Qxc6 {[%emt 0:00:20]} Qxc6 {[%emt 0:00:01]} 19. Rxc6 {[%emt 0:00:02]} bxa5 {[%emt 0:00:01]} 20. Nxa5 {[%emt 0:00:17]} Rd2 {[%emt 0:00:15]} 21. Nc4 {[%emt 0:01:12]} Rxe2 {[%emt 0:00:04]} 22. Rc7 {[%emt 0:00:09]} Bd8 {[%emt 0:00:51]} 23. Rd7 {[%emt 0:00:08]} Bf6 {[%emt 0:00:11]} 24. Rfd1 {[%emt 0:00:35]} h6 {[%emt 0:00:06]} 25. a4 {[%emt 0:00:13]} Rc2 {[%emt 0:00:07]} 26. b3 {[%emt 0:00:09]} e4 {[%emt 0:00:54]} 27. Nd6 {[%emt 0:00:14]} e3 {[%emt 0:01:06]} 28. fxe3 {[%emt 0:00:06]} Rc3 {[%emt 0:00:08]} 29. Ne4 {[%emt 0:00:47]} Rxb3 {[%emt 0:00:02]} 30. Nxf6+ {[%emt 0:00:04]} gxf6 {[%emt 0:00:01]} 31. Kf2 {[%emt 0:00:29]} Ra3 {[%emt 0:00:14]} 32. R1d4 {[%emt 0:00:09]} Re8 {[%emt 0:00:30]} 33. e4 {[%emt 0:00:34]} Rb8 {[%emt 0:00:15]} 34. Rd8+ {[%emt 0:00:36]} Rxd8 {[%emt 0:00:01]} 35. Rxd8+ {[%emt 0:00:02]} Kg7 {[%emt 0:00:01]} 36. Rd4 {[%emt 0:00:02]} Kf8 {[%emt 0:00:06]} 37. Kg2 {[%emt 0:00:05]} Ke7 {[%emt 0:00:03]} 38. Kh3 {[%emt 0:00:01]} Ra2 {[%emt 0:00:01]} 39. Rb4 {[%emt 0:00:07]} Ke6 {[%emt 0:00:10]} 40. g4 {[%emt 0:00:10]} Ke5 {[%emt 0:00:11]} 41. Kg3 {[%emt 0:00:07]} Kd6 {[%emt 0:00:38]} 42. h4 {[%emt 0:00:12]} a5 {[%emt 0:00:10]} 43. Rb6+ {[%emt 0:00:05]} Ke7 {[%emt 0:00:10]} 44. Kf4 {[%emt 0:00:10]} Rxa4 {[%emt 0:00:03]} 45. Rb7+ {[%emt 0:00:14]} Kf8 {[%emt 0:00:10]} 46. Ra7 {[%emt 0:00:03]} Kg7 {[%emt 0:00:07]} 47. Kf5 {[%emt 0:00:02]} Ra1 {[%emt 0:00:04]} 48. Kf4 {[%emt 0:00:09]} a4 {[%emt 0:00:06]} 49. Kg3 {[%emt 0:00:15]} a3 {[%emt 0:00:05]} 50. Kg2 {[%emt 0:00:05]} a2 {[%emt 0:00:07]} 51. Kh2 {[%emt 0:00:02]} Re1 {[%emt 0:00:06]} 52. Rxa2 {[%emt 0:00:02]} Rxe4 {[%emt 0:00:03]} 53. Kg3 {[%emt 0:00:02]} Re3+ {[%emt 0:00:04]} 54. Kf4 {[%emt 0:00:04]} Rb3 {[%emt 0:00:04]} 55. Ra6 {[%emt 0:00:04]} Rb4+ {[%emt 0:00:06]} 56. Kf3 {[%emt 0:00:02]} h5 {[%emt 0:00:06]} 57. g5 {[%emt 0:00:13]} fxg5 {[%emt 0:00:06]} 58. hxg5 {[%emt 0:00:01]} Rg4 {[%emt 0:00:01]} 59. Ra5 {[%emt 0:00:05]} Kg6 {[%emt 0:00:02]} 60. Ra7 {[%emt 0:00:05]} Rxg5 {[%emt 0:00:02]} 61. Kf4 {[%emt 0:00:02]} Rg4+ {[%emt 0:00:01]} 62. Kf3 {[%emt 0:00:01]} Rb4 {[%emt 0:00:02]} 63. Ra5 {[%emt 0:00:03]} Rb3+ {[%emt 0:00:03]} 64. Kf4 {[%emt 0:00:01]} Rb4+ {[%emt 0:00:01]} 65. Kf3 {[%emt 0:00:01]} Rg4 {[%emt 0:00:03]} 66. Ra6+ {[%emt 0:00:02]} f6 {[%emt 0:00:01]} 67. Ra5 {[%emt 0:00:02]} Rg5 {[%emt 0:00:01]} 68. Ra8 {[%emt 0:00:01]} h4 {[%emt 0:00:10]} 69. Rh8 {[%emt 0:00:03]} Rh5 {[%emt 0:00:02]} 70. Rg8+ {[%emt 0:00:01]} Kf5 {[%emt 0:00:02]} 71. Rg2 {[%emt 0:00:05]} h3 {[%emt 0:00:02]} 72. Rh2 {[%emt 0:00:01]} Kg5 {[%emt 0:00:10]} 73. Kg3 {[%emt 0:00:03]} f5 {[%emt 0:00:04]} 74. Kf3 {[%emt 0:00:01]} Rh8 {[%emt 0:00:04]} 75. Kg3 {[%emt 0:00:03]} f4+ {[%emt 0:00:03]} 76. Kf3 {[%emt 0:00:01]} Rh7 {[%emt 0:00:02]} 77. Rh1 {[%emt 0:00:08]} h2 {[%emt 0:00:05]} 78. Kf2 {[%emt 0:00:02]} Kg4 {[%emt 0:00:02]} 79. Kg2 {[%emt 0:00:01]} f3+ {[%emt 0:00:01]} 80. Kf2 {[%emt 0:00:02]} Kf4 {[%emt 0:00:02]} 81. Ke1 {[%emt 0:00:03]} Kg3 {[%emt 0:00:02]} 82. Kf1 {[%emt 0:00:01]} Rb7 {[%emt 0:00:02]} 0-1

[Event "Polish University-ch Women 2024"]
[Site "Lublin"]
[Date "2024.02.24"]
[Round "6.8"]
[White "Shaban, Aliaksandra"]
[Black "Adamczyk, Zuzanna"]
[Result "1-0"]
[ECO "D04"]
[WhiteElo "1708"]
[BlackElo "1970"]
[Annotator "RC"]
[PlyCount "105"]
[EventDate "2024.02.22"]
[EventType "swiss"]
[EventCountry "POL"]
[SourceTitle "playchess.com"]
[Source "ChessBase"]
[SourceQuality "1"]
[TimeControl "600+3"]

1. d4 {[%emt 0:00:02]} d5 {[%emt 0:01:21]} 2. Nf3 {[%emt 0:00:01]} Nf6 {[%emt 0:00:02]} 3. e3 {[%emt 0:00:01]} c6 {[%emt 0:00:22]} 4. Bd3 {[%emt 0:00:05]} Bg4 {[%emt 0:00:06]} 5. O-O {[%emt 0:00:03]} e6 {[%emt 0:00:03]} 6. Nbd2 {[%emt 0:00:03]} Nbd7 {[%emt 0:00:09]} 7. b3 {[%emt 0:00:13]} e5 {[%emt 0:00:49]} 8. dxe5 {[%emt 0:00:02]} Nxe5 {[%emt 0:00:01]} 9. Be2 {[%emt 0:00:01]} Nxf3+ {[%emt 0:00:18]} 10. Nxf3 {[%emt 0:00:05]} Bd6 {[%emt 0:00:09]} 11. Bb2 {[%emt 0:00:04]} O-O {[%emt 0:00:03]} 12. h3 {[%emt 0:00:02]} Bh5 {[%emt 0:00:21]} 13. c4 {[%emt 0:00:18]} dxc4 {[%emt 0:00:23]} 14. Bxc4 {[%emt 0:00:03]} Qe7 {[%emt 0:00:04]} 15. Be2 {[%emt 0:00:05]} Rfd8 {[%emt 0:00:10]} 16. Qc2 {[%emt 0:00:14]} Bg6 {[%emt 0:00:03]} 17. Qc4 {[%emt 0:00:08]} Nd5 {[%emt 0:00:33]} 18. Rfd1 {[%emt 0:01:00]} Rac8 {[%emt 0:00:07]} 19. Rac1 {[%emt 0:00:14]} Ba3 {[%emt 0:00:38]} 20. Qd4 {[%emt 0:00:49]} Bxb2 {[%emt 0:00:15]} 21. Qxb2 {[%emt 0:00:01]} Be4 {[%emt 0:00:57]} 22. a3 {[%emt 0:01:31]} a6 {[%emt 0:00:03]} 23. b4 {[%emt 0:00:08]} b5 {[%emt 0:01:02]} 24. Qe5 {[%emt 0:01:11]} Re8 {[%emt 0:01:21]} 25. Qxe7 {[%emt 0:00:13]} Rxe7 {[%emt 0:00:28]} 26. Nd4 {[%emt 0:00:05]} Rec7 {[%emt 0:00:33]} 27. Bg4 {[%emt 0:00:29]} f5 {[%emt 0:00:33]} 28. Bxf5 {[%emt 0:00:06]} Bxf5 {[%emt 0:00:02]} 29. Nxf5 {[%emt 0:00:02]} Nb6 {[%emt 0:00:10]} 30. Nd6 {[%emt 0:00:29]} Rd8 {[%emt 0:00:01]} 31. Kh2 {[%emt 0:00:14]} Kf8 {[%emt 0:00:02]} 32. e4 {[%emt 0:00:17]} g6 {[%emt 0:00:03]} 33. e5 {[%emt 0:00:21]} Ke7 {[%emt 0:00:07]} 34. Rd2 {[%emt 0:00:24]} Rdd7 {[%emt 0:00:03]} 35. Rdc2 {[%emt 0:00:11]} Nc4 {[%emt 0:00:14]} 36. Nxc4 {[%emt 0:00:03]} bxc4 {[%emt 0:00:02]} 37. Rxc4 {[%emt 0:00:01]} Rd3 {[%emt 0:00:02]} 38. a4 {[%emt 0:00:26]} Ra3 {[%emt 0:00:02]} 39. b5 {[%emt 0:00:08]} axb5 {[%emt 0:00:04]} 40. axb5 {[%emt 0:00:00]} Ra5 {[%emt 0:00:04]} 41. Rxc6 {[%emt 0:00:08]} Rxc6 {[%emt 0:00:02]} 42. bxc6 {[%emt 0:00:01]} Ra8 {[%emt 0:00:08]} 43. Kg3 {[%emt 0:00:09]} Rc8 {[%emt 0:00:02]} 44. Kf4 {[%emt 0:00:04]} Ke6 {[%emt 0:00:01]} 45. Ke4 {[%emt 0:00:02]} Rc7 {[%emt 0:00:01]} 46. f4 {[%emt 0:00:05]} h5 {[%emt 0:00:05]} 47. g4 {[%emt 0:00:01]} hxg4 {[%emt 0:00:03]} 48. hxg4 {[%emt 0:00:01]} Ke7 {[%emt 0:00:06]} 49. f5 {[%emt 0:00:04]} g5 {[%emt 0:00:03]} 50. Kd5 {[%emt 0:00:04]} Rc8 {[%emt 0:00:01]} 51. c7 {[%emt 0:00:04]} Kd7 {[%emt 0:00:02]} 52. e6+ {[%emt 0:00:03]} Ke7 {[%emt 0:00:02]} 53. Ke5 {[%emt 0:00:01]} 1-0